bitfinex-derivatives/quotes_BTCF0:USTF0_20210104
["timestamp","ask_amount","ask_price","bid_price","bid_amount"]
[1609762112712,0.14505,30566.0,30542.0,4.63262]
[1609762112713,0.14505,30566.0,30549.0,0.13632608]
[1609762113011,0.14505,30566.0,30542.0,4.63262]
[1609762113614,5.4011,30543.0,30542.0,0.16082]
[1609762113814,5.4011,30543.0,30509.0,2.10592863]
[1609762114012,5.50927,30543.0,30509.0,2.10592863]
[1609762114415,0.10817,30543.0,30509.0,2.10592863]
[1609762114615,0.10817,30543.0,30498.0,2.11540777]
[1609762114815,4.8648,30517.0,30498.0,2.11540777]
[1609762115217,4.8648,30517.0,30511.0,0.13632608]
[1609762115416,0.09717,30536.0,30511.0,0.26397608]
[1609762115616,3.6961,30530.0,30511.0,0.26397608]
[1609762117119,3.6961,30530.0,30511.0,0.12765]
[1609762117321,0.13632608,30512.0,30511.0,0.12765]
[1609762117519,0.13632608,30512.0,30489.0,2.12182091]
[1609762117720,5.1082,30512.0,30485.0,2.12833969]
[1609762118332,0.114,30516.0,30485.0,2.24489969]
[1609762118529,5.5115,30500.0,30485.0,2.24489969]
[1609762118929,0.2744,30515.0,30485.0,1.88939969]
[1609762119137,4.9462,30486.0,30485.0,0.11656]
[1609762119333,5.08252608,30486.0,30485.0,0.11656]
[1609762119728,0.13632608,30486.0,30485.0,0.11656]
[1609762120726,5.1813,30489.0,30485.0,0.11656]
[1609762121334,0.13632608,30486.0,30485.0,0.25288608]
[1609762121529,0.13632608,30486.0,30485.0,0.11656]
[1609762123031,0.14764,30500.0,30485.0,0.11656]
[1609762123232,5.1037,30513.0,30485.0,0.11656]
[1609762123430,0.2744,30515.0,30507.0,0.27714608]
[1609762124432,0.2744,30515.0,30507.0,0.14082]
[1609762125431,0.2744,30515.0,30510.0,0.13632608]
[1609762125631,0.2744,30515.0,30507.0,0.14082]
[1609762126032,0.2744,30515.0,30500.0,0.11344]
[1609762126434,5.5612,30515.0,30500.0,0.11344]
[1609762127034,5.67252,30515.0,30500.0,0.11344]
[1609762127434,0.13632608,30501.0,30500.0,0.11344]
[1609762128037,5.67252,30515.0,30500.0,0.11344]
[1609762128637,5.67252,30515.0,30496.0,0.13632608]
[1609762129441,5.67252,30515.0,30505.0,0.13632608]
[1609762130539,5.67252,30515.0,30504.0,0.13746]
[1609762131342,0.38572,30515.0,30504.0,0.13746]
[1609762131541,0.13632608,30505.0,30504.0,0.13746]
[1609762132342,0.38572,30515.0,30504.0,0.13746]
[1609762133542,0.13632608,30505.0,30504.0,0.13746]
[1609762135045,0.38572,30515.0,30502.0,0.13632608]
[1609762135246,0.13702,30526.0,30502.0,0.24369608]
[1609762135445,0.13632608,30524.0,30519.0,0.13632608]
[1609762135645,0.13632608,30524.0,30502.0,0.10737]
[1609762136246,0.57818736,30538.0,30507.0,5.273]
[1609762136849,0.2797,30541.0,30507.0,5.273]
[1609762137448,0.2797,30541.0,30508.0,0.0972]
[1609762137849,0.2797,30541.0,30538.0,0.13632608]
[1609762138249,0.2797,30541.0,30534.0,0.14534]
[1609762139851,0.2797,30541.0,30539.0,0.13632608]
[1609762140051,0.2797,30541.0,30534.0,0.14534]
[1609762141953,0.13632608,30535.0,30534.0,0.14534]
[1609762143254,0.13632608,30535.0,30530.0,4.3963]
[1609762143455,0.2797,30541.0,30530.0,4.3963]
[1609762143957,0.13632608,30537.0,30531.0,0.13632608]
[1609762146061,0.13632608,30537.0,30536.0,0.13632608]
[1609762146260,0.2797,30541.0,30536.0,0.13632608]
[1609762146663,0.2797,30541.0,30530.0,0.15625]
[1609762149167,0.2797,30541.0,30529.0,5.4802]
[1609762149366,0.11089,30551.0,30529.0,5.4802]
[1609762149566,0.57926369,30563.0,30529.0,5.57764]
[1609762149966,0.57926369,30563.0,30562.0,0.13632608]
[1609762150366,0.58005143,30568.0,30562.0,0.13632608]
[1609762151768,0.58005143,30568.0,30561.0,0.1152]
[1609762151968,0.38455143,30568.0,30561.0,0.1152]
[1609762152171,1.08259515,30580.0,30561.0,0.1152]
[1609762152172,0.69826528,30581.0,30562.0,0.0987]
[1609762152368,0.0979,30580.0,30572.0,0.10334]
[1609762152568,4.2554,30579.0,30572.0,0.10334]
[1609762153370,0.0991,30590.0,30572.0,0.10334]
[1609762153568,4.0443,30590.0,30572.0,0.10334]
[1609762153768,3.9452,30590.0,30572.0,0.10334]
[1609762154374,0.13632608,30573.0,30572.0,0.10334]
[1609762155771,5.1633,30580.0,30572.0,0.10334]
[1609762156071,0.0991,30579.0,30572.0,0.10334]
[1609762156273,5.1633,30580.0,30572.0,0.10334]
[1609762156671,0.13632608,30573.0,30572.0,0.10334]
[1609762157474,0.13632608,30573.0,30567.0,4.4709]
[1609762158674,0.13632608,30568.0,30567.0,4.4709]
[1609762160975,0.0973,30585.0,30567.0,4.4709]
[1609762161275,0.7975663,30587.0,30567.0,4.4709]
[1609762161879,0.098,30587.0,30567.0,4.4709]
[1609762162275,0.0974,30586.0,30567.0,4.4709]
[1609762162474,0.6955917,30588.0,30567.0,4.4709]
[1609762162875,0.6955917,30588.0,30567.0,4.60722608]
[1609762163175,0.6955917,30588.0,30567.0,4.4709]
[1609762163576,0.0991,30587.0,30567.0,4.4709]
[1609762163776,0.0982,30586.0,30567.0,4.4709]
[1609762164176,0.69205042,30590.0,30567.0,4.4709]
[1609762165379,0.8283765,30590.0,30586.0,0.13632608]
[1609762165777,0.69205042,30590.0,30586.0,0.15548]
[1609762165978,0.69275999,30592.0,30586.0,0.15548]
[1609762167380,0.69275999,30592.0,30591.0,0.13632608]
[1609762167780,0.69275999,30592.0,30591.0,4.92802608]
[1609762168381,0.13632608,30598.0,30591.0,4.92802608]
[1609762169279,0.69507,30605.0,30591.0,4.92802608]
[1609762169482,0.69507,30605.0,30601.0,0.13632608]
[1609762169882,0.69008958,30614.0,30601.0,0.13632608]
[1609762170482,0.69008958,30614.0,30600.0,0.09959]
[1609762171085,0.97869024,30616.0,30600.0,0.09959]
[1609762171086,0.13529,30616.0,30600.0,0.09959]
[1609762171384,0.13529,30616.0,30602.0,0.13632608]
[1609762171585,0.13529,30616.0,30600.0,0.09959]
[1609762172788,0.13529,30616.0,30601.0,0.532]
[1609762172987,0.13529,30616.0,30600.0,0.09959]
[1609762173187,0.69120787,30622.0,30608.0,4.804]
[1609762173587,0.69120787,30622.0,30621.0,0.13632608]
[1609762173788,0.69120787,30622.0,30621.0,4.29162608]
[1609762174591,0.69120787,30622.0,30621.0,4.44118608]
[1609762174789,0.43412261,30622.0,30621.0,4.44118608]
[1609762174989,0.43412261,30622.0,30621.0,4.30486]
[1609762175389,0.31832261,30622.0,30621.0,4.30486]
[1609762175589,0.31832261,30622.0,30621.0,4.44118608]
[1609762175791,0.13632608,30635.0,30621.0,4.44118608]
[1609762176190,0.68754262,30648.0,30621.0,4.44118608]
[1609762176590,0.68754262,30648.0,30621.0,0.28588608]
[1609762176792,5.4408,30644.0,30621.0,0.14956]
[1609762177490,0.13632608,30625.0,30621.0,0.14956]
[1609762177891,0.14891,30635.0,30621.0,0.14956]
[1609762178090,0.1133,30646.0,30621.0,0.14956]
[1609762179492,0.13632608,30635.0,30633.0,0.13632608]
[1609762180194,0.1133,30646.0,30633.0,0.13632608]
[1609762181493,0.1133,30646.0,30639.0,0.13632608]
[1609762183496,0.13632608,30640.0,30639.0,0.13632608]
[1609762185698,0.13632608,30640.0,30621.0,0.12189]
[1609762185998,0.13632608,30640.0,30620.0,3.9293]
[1609762187503,0.13632608,30640.0,30639.0,0.13632608]
[1609762190703,0.1133,30646.0,30635.0,4.6885]
[1609762191507,0.1133,30646.0,30640.0,0.13632608]
[1609762193109,0.55816308,30663.0,30640.0,0.13632608]
[1609762193408,0.55816308,30663.0,30637.0,0.09798]
[1609762193709,0.11159,30658.0,30637.0,0.09798]
[1609762194011,0.11159,30658.0,30642.0,0.13632608]
[1609762194209,0.11159,30658.0,30642.0,0.68882608]
[1609762195811,0.11159,30658.0,30642.0,0.5525]
[1609762196011,0.13632608,30643.0,30642.0,0.5525]
[1609762196211,0.13632608,30643.0,30637.0,0.09798]
[1609762198114,0.13657,30649.0,30639.0,0.13632608]
[1609762200117,0.13632608,30640.0,30639.0,0.13632608]
[1609762203119,0.13657,30649.0,30637.0,0.09798]
[1609762203520,0.13657,30649.0,30626.0,0.14369]
[1609762203721,0.13657,30649.0,30635.0,4.3265]
[1609762204024,0.13632608,30636.0,30635.0,4.3265]
[1609762204224,0.13632608,30636.0,30633.0,0.13632608]
[1609762204422,4.69992608,30636.0,30614.0,0.15275]
[1609762204622,0.13632608,30636.0,30586.0,0.0983]
[1609762204822,4.1374,30620.0,30586.0,4.4813]
[1609762205623,0.2848,30634.0,30581.0,2.13054523]
[1609762205823,0.2848,30634.0,30581.0,2.28069523]
[1609762205824,3.9278,30616.0,30581.0,2.28069523]
[1609762206026,0.2848,30634.0,30615.0,0.13632608]
[1609762206427,4.8412,30616.0,30588.0,4.5513]
[1609762208025,4.8412,30616.0,30613.0,0.13632608]
[1609762208225,0.2943,30626.0,30613.0,0.13632608]
[1609762210027,0.13632608,30614.0,30613.0,0.13632608]
[1609762211430,0.13632608,30614.0,30609.0,0.10724]
[1609762212134,5.5061,30626.0,30611.0,0.13632608]
[1609762212932,5.5061,30626.0,30609.0,0.01356608]
[1609762213333,5.5061,30626.0,30598.0,5.1752]
[1609762214035,5.5061,30626.0,30616.0,0.13632608]
[1609762214437,0.2943,30626.0,30616.0,0.13632608]
[1609762216039,0.13632608,30617.0,30616.0,0.13632608]
[1609762217739,4.9994,30626.0,30616.0,0.13632608]
[1609762218039,4.9994,30626.0,30621.0,0.13632608]
[1609762218240,0.2943,30626.0,30621.0,0.13632608]
[1609762218641,0.2943,30626.0,30612.0,3.80422]
[1609762220045,0.13632608,30613.0,30612.0,3.94054608]
[1609762220446,0.13632608,30613.0,30612.0,0.23844608]
[1609762222651,0.13632608,30613.0,30612.0,0.10212]
[1609762222850,0.13632608,30613.0,30599.0,4.1238]
[1609762223050,0.13632608,30613.0,30583.0,0.0982]
[1609762223449,0.13632608,30613.0,30591.0,3.9928]
[1609762223654,0.13632608,30613.0,30591.0,4.09351]
[1609762224050,0.13632608,30613.0,30612.0,0.13632608]
[1609762226460,5.18632608,30613.0,30612.0,0.13632608]
[1609762226949,5.18632608,30613.0,30611.0,0.14484]
[1609762227350,3.9631,30612.0,30591.0,0.10071]
[1609762227753,4.0819,30594.0,30591.0,0.10071]
[1609762227951,0.13632608,30613.0,30591.0,0.10071]
[1609762228153,0.13632608,30592.0,30591.0,0.10071]
[1609762228553,5.56812608,30592.0,30591.0,0.10071]
[1609762228753,5.56812608,30592.0,30586.0,0.13632608]
[1609762229555,5.56812608,30592.0,30581.0,0.15015]
[1609762229755,5.56812608,30592.0,30568.0,7.19643418]
[1609762229955,5.56812608,30592.0,30568.0,7.09823418]
[1609762230155,0.1046,30608.0,30575.0,0.13632608]
[1609762230357,5.2529,30589.0,30575.0,0.13632608]
[1609762230555,0.1046,30608.0,30575.0,0.29748608]
[1609762230757,5.1811,30589.0,30575.0,0.29748608]
[1609762230956,0.55711304,30603.0,30575.0,0.29748608]
[1609762231155,5.4413,30588.0,30575.0,0.16116]
[1609762231357,0.01811218,30595.0,30575.0,0.16116]
[1609762231556,5.2375,30581.0,30575.0,0.16116]
[1609762231959,0.01811218,30595.0,30575.0,0.16116]
[1609762232157,0.13632608,30576.0,30575.0,0.16116]
[1609762235263,0.01813332,30585.0,30576.0,5.323]
[1609762235862,0.47532621,30586.0,30576.0,5.323]
[1609762236064,0.01822157,30591.0,30575.0,0.16116]
[1609762236264,0.01822157,30591.0,30584.0,4.0509]
[1609762236464,2.157e-05,30591.0,30590.0,0.13632608]
[1609762237767,0.2903,30604.0,30590.0,0.13632608]
[1609762238566,0.2903,30604.0,30603.0,0.13632608]
[1609762247473,0.2903,30604.0,30584.0,0.11636]
[1609762247674,4.2222,30601.0,30599.0,0.11109]
[1609762248276,0.10795,30605.0,30599.0,0.11109]
[1609762248475,4.32572608,30600.0,30599.0,0.11109]
[1609762248875,4.32572608,30600.0,30585.0,0.16021]
[1609762249675,4.32572608,30600.0,30571.0,5.1706]
[1609762249875,4.4871,30584.0,30564.0,2.16762479]
[1609762250276,4.4871,30584.0,30554.0,4.8187]
[1609762250474,0.13632608,30560.0,30559.0,0.13632608]
[1609762251076,4.4871,30584.0,30559.0,0.13632608]
[1609762251276,4.4871,30584.0,30559.0,0.24577608]
[1609762251977,0.6652309,30588.0,30559.0,0.24577608]
[1609762252176,0.6652309,30588.0,30562.0,3.9324]
[1609762252979,0.14346,30592.0,30562.0,3.9324]
[1609762252980,0.14346,30592.0,30580.0,0.13632608]
[1609762253779,5.1396,30586.0,30580.0,0.13632608]
[1609762254180,0.14346,30592.0,30580.0,0.13632608]
[1609762254380,0.14346,30592.0,30573.0,0.12397]
[1609762254580,5.0876,30585.0,30573.0,0.12397]
[1609762255084,0.13632608,30574.0,30573.0,0.12397]
[1609762256488,0.13632608,30574.0,30559.0,0.10945]
[1609762256682,0.13632608,30574.0,30558.0,5.4374]
[1609762256991,0.13632608,30562.0,30561.0,0.13632608]
[1609762257989,0.65779756,30588.0,30561.0,0.13632608]
[1609762258195,0.65779756,30588.0,30563.0,5.2228]
[1609762258885,0.65779756,30588.0,30564.0,0.0989]
[1609762259085,0.79412364,30588.0,30587.0,0.13632608]
[1609762259286,0.79412364,30588.0,30587.0,0.29180608]
[1609762260485,0.13632608,30588.0,30587.0,0.29180608]
[1609762261688,0.66616801,30604.0,30587.0,0.29180608]
[1609762263090,0.66616801,30604.0,30592.0,0.13632608]
[1609762265096,0.13632608,30593.0,30592.0,0.13632608]
[1609762274502,0.55185237,30607.0,30592.0,0.13632608]
[1609762274901,0.55185237,30607.0,30587.0,0.15548]
[1609762275103,0.5547914,30605.0,30587.0,0.15548]
[1609762275301,0.5547914,30605.0,30591.0,4.0281]
[1609762275502,0.5547914,30605.0,30578.0,0.0991]
[1609762275701,0.5547914,30605.0,30586.0,5.3673]
[1609762275901,0.5547914,30605.0,30592.0,3.6596]
[1609762276101,0.5547914,30605.0,30604.0,0.13632608]
[1609762276302,0.5547914,30605.0,30604.0,0.28130608]
[1609762276503,0.55913676,30617.0,30604.0,0.28130608]
[1609762276702,0.55913676,30617.0,30604.0,1.06230608]
[1609762278104,0.55913676,30617.0,30616.0,0.13632608]
[1609762278404,0.56008773,30623.0,30616.0,0.28870608]
[1609762279907,0.13632608,30624.0,30616.0,0.28870608]
[1609762280106,0.13632608,30617.0,30616.0,0.28870608]
[1609762283810,0.56299133,30629.0,30616.0,0.28870608]
[1609762284013,0.67540485,30630.0,30622.0,0.13632608]
[1609762284014,0.56451017,30628.0,30622.0,0.13632608]
[1609762286112,0.56451017,30628.0,30627.0,0.23439608]
[1609762286514,0.56451017,30628.0,30627.0,1.00989608]
[1609762286913,0.13632608,30630.0,30627.0,1.00989608]
[1609762287313,0.13632608,30630.0,30627.0,1.10779608]
[1609762287612,0.13632608,30630.0,30627.0,0.87357]
[1609762288114,0.13632608,30630.0,30628.0,0.13632608]
[1609762289016,0.56722289,30638.0,30628.0,0.13632608]
[1609762289216,0.56722289,30638.0,30629.0,0.0971]
[1609762289417,0.56722289,30638.0,30628.0,0.13632608]
[1609762290118,0.56722289,30638.0,30633.0,0.13632608]
[1609762290319,0.56814116,30640.0,30633.0,0.13632608]
[1609762291622,0.56832693,30641.0,30633.0,0.13632608]
[1609762292120,0.13632608,30634.0,30633.0,0.13632608]
[1609762295322,0.57540653,30641.0,30633.0,0.13632608]
[1609762295923,0.57540653,30641.0,30630.0,3.8536]
[1609762296323,0.57546105,30642.0,30640.0,0.13632608]
[1609762296523,0.57546105,30642.0,30640.0,0.29658608]
[1609762296923,0.13632608,30647.0,30640.0,0.29658608]
[1609762298322,0.13632608,30647.0,30646.0,0.13632608]
[1609762298523,0.57723499,30650.0,30640.0,0.16026]
[1609762298722,4.301,30647.0,30640.0,0.16026]
[1609762298923,0.57723499,30650.0,30640.0,0.16026]
[1609762299122,0.57723499,30650.0,30640.0,4.83856]
[1609762299325,0.57836319,30651.0,30640.0,4.83856]
[1609762300426,0.57786941,30652.0,30650.0,0.13632608]
[1609762300625,0.57786941,30652.0,30650.0,0.28973608]
[1609762301526,0.57907417,30654.0,30650.0,0.28973608]
[1609762302328,0.13632608,30651.0,30650.0,0.28973608]
[1609762302928,0.57926791,30655.0,30650.0,0.28973608]
[1609762303529,0.57926791,30655.0,30650.0,4.84793608]
[1609762304232,0.57415347,30660.0,30650.0,4.84793608]
[1609762304431,0.57415347,30660.0,30659.0,0.24632608]
[1609762304833,0.57415347,30660.0,30659.0,1.01012608]
[1609762305434,1.07158734,30672.0,30659.0,1.01012608]
[1609762305435,0.49304977,30672.0,30659.0,1.01012608]
[1609762305834,0.44254977,30672.0,30659.0,1.01012608]
[1609762306334,0.44254977,30672.0,30671.0,0.13632608]
[1609762306534,0.84229034,30676.0,30671.0,0.82322608]
[1609762306736,0.68959008,30684.0,30671.0,0.25679608]
[1609762306934,0.68959008,30684.0,30678.0,5.3133]
[1609762307134,0.68959008,30684.0,30678.0,5.4513]
[1609762307135,0.61149008,30684.0,30678.0,5.4513]
[1609762307337,0.77697984,30686.0,30678.0,5.4513]
[1609762307736,0.71217984,30686.0,30678.0,5.4513]
[1609762307939,0.2843,30722.0,30678.0,0.138]
[1609762308138,0.2843,30722.0,30693.0,4.6496]
[1609762308338,0.2843,30722.0,30707.0,0.13632608]
[1609762308939,0.2843,30722.0,30693.0,4.6496]
[1609762309141,0.43188,30708.0,30693.0,4.6496]
[1609762309340,0.43188,30708.0,30694.0,0.0978]
[1609762309541,0.43188,30708.0,30693.0,4.6496]
[1609762310341,0.43188,30708.0,30707.0,0.13632608]
[1609762310541,0.43188,30708.0,30707.0,0.68252608]
[1609762311142,0.2801,30708.0,30707.0,0.68252608]
[1609762311342,0.1771,30753.0,30707.0,0.13632608]
[1609762311542,0.2853,30752.0,30718.0,4.4434]
[1609762311743,0.2749,30741.0,30718.0,4.4434]
[1609762311942,0.40689,30741.0,30718.0,4.4434]
[1609762312343,0.40689,30741.0,30735.0,0.13632608]
[1609762312547,0.40689,30741.0,30718.0,4.4434]
[1609762312742,0.13199,30741.0,30718.0,4.4434]
[1609762313143,0.1394,30748.0,30718.0,4.5398]
[1609762313342,0.1394,30748.0,30718.0,4.6904]
[1609762314345,0.1394,30748.0,30743.0,0.13632608]
[1609762314746,0.1394,30748.0,30729.0,0.12384]
[1609762315150,5.1254,30741.0,30729.0,0.12384]
[1609762315350,5.22416,30741.0,30729.0,0.12384]
[1609762315550,5.22416,30741.0,30718.0,0.1506]
[1609762315749,0.09876,30741.0,30718.0,0.1506]
[1609762315949,4.5775,30732.0,30718.0,0.1506]
[1609762316149,4.69503,30732.0,30703.0,5.3718]
[1609762316349,4.69503,30732.0,30712.0,0.13632608]
[1609762316749,0.11753,30732.0,30712.0,0.13632608]
[1609762316950,0.11753,30732.0,30718.0,4.5874]
[1609762318754,0.11753,30732.0,30731.0,0.13632608]
[1609762319754,0.11753,30732.0,30731.0,4.79362608]
[1609762320356,0.11753,30732.0,30731.0,0.13632608]
[1609762320554,5.11373,30732.0,30706.0,5.1369]
[1609762320755,0.13632608,30724.0,30721.0,0.13632608]
[1609762320954,3.8767,30722.0,30697.0,3.9122]
[1609762321355,0.13704,30725.0,30668.0,0.0966]
[1609762321755,4.9792,30716.0,30668.0,3.95477]
[1609762322756,4.9792,30716.0,30715.0,0.13632608]
[1609762322960,0.13704,30725.0,30715.0,0.13632608]
[1609762324759,0.12964,30725.0,30724.0,0.13632608]
[1609762325160,0.2996,30731.0,30724.0,0.13632608]
[1609762325357,0.11753,30732.0,30724.0,0.13632608]
[1609762325560,5.373,30753.0,30724.0,0.13632608]
[1609762325758,5.373,30753.0,30724.0,0.26712608]
[1609762325958,0.2953,30763.0,30724.0,0.26712608]
[1609762326158,0.2953,30763.0,30728.0,5.3749]
[1609762326760,0.2953,30763.0,30751.0,0.13632608]
[1609762327560,0.2953,30763.0,30748.0,5.0474]
[1609762327762,0.39266,30763.0,30748.0,5.0474]
[1609762328764,0.09736,30763.0,30762.0,0.13632608]
[1609762328984,0.2704,30793.0,30762.0,0.13632608]
[1609762329366,0.2704,30793.0,30778.0,5.2101]
[1609762329564,0.83484247,30799.0,30778.0,5.31362]
[1609762329970,0.23904247,30799.0,30778.0,5.31362]
[1609762330164,0.22764247,30799.0,30778.0,5.31362]
[1609762330365,0.94781557,30812.0,30778.0,5.31362]
[1609762330766,0.94781557,30812.0,30789.0,0.13632608]
[1609762331866,0.2892,30813.0,30789.0,0.13632608]
[1609762332766,0.1517,30794.0,30786.0,0.13632608]
[1609762332964,0.2892,30813.0,30786.0,0.13632608]
[1609762332965,0.14608,30804.0,30786.0,0.13632608]
[1609762334766,0.13632608,30793.0,30791.0,0.13632608]
[1609762335168,0.14608,30804.0,30785.0,0.15843]
[1609762337268,0.14608,30804.0,30803.0,0.13632608]
[1609762338070,0.2892,30813.0,30803.0,0.13632608]
[1609762339273,0.13632608,30805.0,30803.0,0.13632608]
[1609762339473,0.29140608,30805.0,30803.0,0.13632608]
[1609762340673,0.15508,30805.0,30803.0,0.13632608]
[1609762344478,0.2892,30813.0,30803.0,0.13632608]
[1609762345380,0.2892,30813.0,30812.0,0.13632608]
[1609762346180,0.2892,30813.0,30812.0,0.72172608]
[1609762348082,0.2449,30813.0,30812.0,0.72172608]
[1609762348684,0.2449,30813.0,30812.0,0.13632608]
[1609762349085,0.1476,30813.0,30812.0,0.13632608]
[1609762349483,0.0407,30813.0,30812.0,0.13632608]
[1609762349684,0.2872,30832.0,30817.0,5.3894]
[1609762350084,0.2459,30832.0,30817.0,5.3894]
[1609762351284,0.2459,30832.0,30831.0,0.13632608]
[1609762352891,0.2459,30832.0,30811.0,4.7388]
[1609762353194,0.2459,30832.0,30809.0,0.1094]
[1609762353195,4.9106,30824.0,30809.0,0.1094]
[1609762353394,0.13632608,30811.0,30809.0,0.1094]
[1609762353591,0.28277608,30811.0,30805.0,0.13632608]
[1609762355297,0.28277608,30811.0,30810.0,0.13632608]
[1609762356398,0.14645,30811.0,30795.0,5.0119]
[1609762356597,0.14645,30811.0,30796.0,0.0986]
[1609762356801,0.14645,30811.0,30796.0,4.2216]
[1609762357399,0.14645,30811.0,30810.0,0.13632608]
[1609762358802,0.03832608,30817.0,30810.0,0.13632608]
[1609762359202,0.10799,30824.0,30810.0,0.13632608]
[1609762359405,0.10799,30824.0,30823.0,0.13632608]
[1609762359604,0.13632608,30828.0,30823.0,0.13632608]
[1609762361405,0.13632608,30824.0,30823.0,0.13632608]
[1609762361806,0.27788608,30824.0,30823.0,0.13632608]
[1609762362906,0.27788608,30824.0,30805.0,0.098]
[1609762363108,0.27788608,30824.0,30770.0,0.0977]
[1609762363307,4.8646,30821.0,30814.0,0.13632608]
[1609762363508,0.14156,30824.0,30814.0,0.13632608]
[1609762363908,0.14156,30824.0,30806.0,3.9231]
[1609762364913,0.14156,30824.0,30798.0,0.0983]
[1609762365311,0.14156,30824.0,30812.0,0.13632608]
[1609762365511,0.14156,30824.0,30798.0,0.0983]
[1609762365512,0.14156,30824.0,30802.0,0.0967]
[1609762366414,0.14156,30824.0,30797.0,4.7506]
[1609762366915,0.36271,30832.0,30797.0,4.7506]
[1609762367117,0.10227,30824.0,30797.0,4.7506]
[1609762367317,0.10227,30824.0,30809.0,0.13632608]
[1609762369420,0.10227,30824.0,30818.0,0.13632608]
[1609762371326,0.10227,30824.0,30822.0,0.13632608]
[1609762372129,0.36271,30832.0,30822.0,0.13632608]
[1609762372529,1.05091,30832.0,30822.0,0.13632608]
[1609762372730,1.05091,30832.0,30805.0,4.1378]
[1609762372731,1.05091,30832.0,30744.0,0.356]
[1609762372930,1.05091,30832.0,30786.0,3.9144]
[1609762373330,0.11681,30832.0,30781.0,1.98580894]
[1609762373531,0.1605,30832.0,30781.0,1.98580894]
[1609762373734,4.3751,30782.0,30781.0,1.58480894]
[1609762374031,4.51142608,30782.0,30781.0,1.58480894]
[1609762374233,4.51142608,30782.0,30781.0,1.48010894]
[1609762374431,4.51142608,30782.0,30772.0,2.62102774]
[1609762374432,4.51142608,30782.0,30774.0,2.24563855]
[1609762374632,4.3751,30782.0,30774.0,2.24563855]
[1609762374831,0.096,30782.0,30774.0,1.96143855]
[1609762375032,0.096,30782.0,30774.0,0.86983855]
[1609762375232,0.096,30782.0,30743.0,4.3309]
[1609762375431,0.096,30782.0,30730.0,2.45270985]
[1609762375632,3.9011,30747.0,30730.0,2.45270985]
[1609762375831,0.096,30782.0,30730.0,2.45270985]
[1609762376034,0.096,30782.0,30730.0,2.56351985]
[1609762376035,0.12223,30747.0,30730.0,2.56351985]
[1609762376835,0.12223,30747.0,30730.0,0.11081]
[1609762377034,0.10893,30747.0,30730.0,0.11081]
[1609762377435,3e-05,30755.0,30730.0,0.20961]
[1609762377634,4.1353,30774.0,30730.0,0.20961]
[1609762377635,0.288,30781.0,30738.0,4.9688]
[1609762377835,0.01935,30760.0,30730.0,0.20961]
[1609762378044,0.288,30781.0,30759.0,0.13632608]
[1609762378045,0.1823,30781.0,30759.0,0.13632608]
[1609762378237,0.0662,30781.0,30759.0,0.28480608]
[1609762378437,0.0662,30781.0,30766.0,5.3092]
[1609762378837,0.0662,30781.0,30766.0,5.43681]
[1609762379938,0.0662,30781.0,30780.0,0.13632608]
[1609762381139,0.0662,30781.0,30780.0,0.23462608]
[1609762381841,0.0662,30781.0,30780.0,0.0983]
[1609762382040,0.0662,30781.0,30776.0,0.12747]
[1609762382642,0.22526,30781.0,30766.0,0.12761]
[1609762383043,0.22526,30781.0,30771.0,0.13632608]
[1609762384547,0.15396,30781.0,30771.0,3.8053]
[1609762384745,0.06916,30781.0,30771.0,3.8053]
[1609762384947,0.14798,30789.0,30771.0,3.8053]
[1609762385147,8e-05,30789.0,30788.0,0.13632608]
[1609762385346,0.096,30798.0,30763.0,0.0988]
[1609762385547,0.0982,30802.0,30763.0,0.0988]
[1609762385748,0.8447825,30826.0,30775.0,3.7768]
[1609762385947,0.8447825,30826.0,30772.0,0.0972]
[1609762386147,0.8447825,30826.0,30777.0,4.51861]
[1609762386349,0.8447825,30826.0,30778.0,0.0974]
[1609762386648,0.8447825,30826.0,30780.0,3.6665]
[1609762387050,0.13632608,30799.0,30798.0,0.13632608]
[1609762387450,0.23801608,30799.0,30780.0,3.6665]
[1609762388349,0.23801608,30799.0,30777.0,0.13691]
[1609762389051,0.10169,30799.0,30792.0,0.13632608]
[1609762390852,0.10169,30799.0,30784.0,0.0984]
[1609762391052,0.10169,30799.0,30781.0,0.0985]
[1609762391453,0.10169,30799.0,30798.0,0.13632608]
[1609762392454,0.85633268,30813.0,30798.0,0.13632608]
[1609762393054,0.85764353,30814.0,30798.0,0.13632608]
[1609762393454,0.85764353,30814.0,30813.0,0.13632608]
[1609762393654,0.85764353,30814.0,30794.0,4.8138]
[1609762393854,0.98519353,30814.0,30794.0,4.8138]
[1609762394356,0.12755,30814.0,30794.0,4.8138]
[1609762394955,0.12755,30814.0,30794.0,0.0987]
[1609762395356,0.13632608,30808.0,30802.0,0.13632608]
[1609762397359,0.13632608,30803.0,30802.0,0.13632608]
[1609762398660,0.13632608,30803.0,30791.0,0.098]
[1609762398860,0.13632608,30803.0,30787.0,0.0967]
[1609762399060,0.13632608,30803.0,30786.0,0.24325]
[1609762399261,0.13632608,30803.0,30786.0,0.14515]
[1609762399462,0.13632608,30787.0,30778.0,0.23252608]
[1609762399662,0.13632608,30787.0,30778.0,0.13632608]
[1609762400063,0.13632608,30787.0,30767.0,4.9589]
[1609762400263,0.13632608,30787.0,30767.0,5.0559]
[1609762400465,0.13632608,30787.0,30767.0,4.9589]
[1609762401066,0.15276,30790.0,30767.0,4.9589]
[1609762401266,0.15276,30790.0,30767.0,5.11129]
[1609762401466,0.13632608,30783.0,30780.0,0.13632608]
[1609762402668,3.9475,30782.0,30780.0,0.13632608]
[1609762402868,3.9475,30782.0,30767.0,0.15239]
[1609762403670,0.15276,30790.0,30767.0,0.15239]
[1609762404071,0.15276,30790.0,30779.0,0.13632608]
[1609762405475,0.14197,30800.0,30779.0,0.13632608]
[1609762405877,4.1012,30804.0,30767.0,5.28699]
[1609762406075,0.13632608,30768.0,30767.0,0.15239]
[1609762406279,0.13632608,30768.0,30759.0,0.14848]
[1609762406475,0.13632608,30768.0,30745.0,2.10218672]
[1609762407277,0.13632608,30768.0,30744.0,4.7261]
[1609762407278,0.13632608,30768.0,30744.0,6.82802951]
[1609762407977,3.7504,30772.0,30762.0,0.13632608]
[1609762408179,3.7504,30772.0,30762.0,0.27379608]
[1609762408377,0.2873,30785.0,30762.0,0.27379608]